Cogmind - Beta 17 @@@ ROGUE MODE // 2026.07.10 @ 18:43:08 Player: Delta Result: Self-destructed Performance ------------- Evolutions (1) 500 Regions Visited (2) 400 Robots Destroyed (16) 80 Value Destroyed (262) 262 Prototype IDs (0) 0 Alien Tech Used (0) 0 Bonus (0) 0 TOTAL SCORE: 1242 Bonus ------- None Cogmind --------- Core Integrity 355/400 Matter 283/300 Energy 73/100 System Corruption 0% Temperature Cool (0) Movement Rolling (80) Location -9/Materials Parts ------- > --- POWER (2) -------- (None) > --- PROPULSION (2) --- Wheel > --- UTILITY (3) ------ Small Storage Unit > --- WEAPON (2) ------- Light EM Pulse Cannon > --- INVENTORY (8) ---- Wheel Improved Terrain Scanner Datajack Peak State ------------ > --- POWER ------------ Ion Engine > --- PROPULSION ------- Compact Wheel Compact Wheel > --- UTILITY ---------- Improved Terrain Scanner Improved Terrain Scanner > --- WEAPON ----------- Assault Rifle Assault Rifle > --- INVENTORY -------- Light Ion Engine Aluminum Leg Aluminum Leg EM Pulse Gun [Rating: 11] Favorites ----------- Power Ion Engine Engine Ion Engine Propulsion Compact Wheel Leg Aluminum Leg Wheel Compact Wheel Utility Small Storage Unit Device Seismic Detector Storage Small Storage Unit Weapon Assault Rifle Energy Gun EM Pulse Gun Energy Cannon Light EM Pulse Cannon Ballistic Gun Assault Rifle Build | -11 -10 -9 ------- Run | Yrd Mat Mat Slots Evolved 2 | . . 2 Power 1 | . . 1 Propulsion . | . . . Utility 1 | . . 1 Weapon . | . . . Parts Attached 16 | 11 4 1 Power 2 | 1 1 . Engine 2 | 1 1 . Core . | . . . Reactor . | . . . Propulsion 5 | 4 . 1 Treads . | . . . Leg 2 | 2 . . Wheel 3 | 2 . 1 Hover . | . . . Flight . | . . . Utility 4 | 3 1 . Device 3 | 2 1 . Storage 1 | 1 . . Processor . | . . . Hackware . | . . . Protection . | . . . Artifact . | . . . Weapon 5 | 3 2 . Energy Gun 1 | 1 . . Energy Cannon 2 | . 2 . Ballistic Gun 2 | 2 . . Ballistic Cannon . | . . . Launcher . | . . . Special Weapon . | . . . Impact Weapon . | . . . Slashing Weapon . | . . . Piercing Weapon . | . . . Special Melee Weapon . | . . . Unidentified Prototypes . | . . . Parts Lost 6 | . 4 2 Power 1 | . 1 . Propulsion 2 | . 1 1 Utility 1 | . 1 . Weapon 2 | . 1 1 Highest Loss Streak 2 | . 2 2 To Critical Strikes . | . . . Average Backups 3 | 4 4 2 Power . | . . . Propulsion 1 | 1 1 1 Utility . | . . 1 Weapon . | 1 . . Tool/Special . | . . . Unused Backups 4 | 2 . 2 Power . | . . . Propulsion 1 | . . 1 Utility . | . . . Weapon 2 | 2 . . Tool/Special 1 | . . 1 Average Slot Usage (%) 82 | . 94 55 Engine 8 | . 12 . Wheel 24 | . 26 22 Device 10 | . 14 . Storage 12 | . 13 11 Energy Gun 1 | . 2 . Energy Cannon 7 | . . 22 Ballistic Gun 15 | . 22 . Peak Build Rating 11 | 11 11 7 Average Rating 6 | 6 6 6 On Entrance 5 | . 11 6 Avg Prop Armor Cover (%) . | . . . Naked Turns . | . . . Heaviest Build 15 | 15 15 13 Greatest Support 32 | 32 32 26 Greatest Overweight (x) . | . . . Average Overweight (x) . | . . . Largest Inventory Capacity 8 | 8 8 8 Average Capacity 7 | 6 7 8 Most Carried 8 | 8 6 3 Average Carried 3 | 4 4 2 Final Capacity 8 | 5 8 8 Final Carried 5 | 5 3 3 Class Distribution -------------------- 100% | Mutant Dominant Class ---------------- Mutant | -10/Materials Mutant | -9/Materials Resources | -11 -10 -9 ----------- Run | Yrd Mat Mat Matter Collected 529 | 283 246 . Remotely . | . . . Salvage Created 462 | 175 287 . Parts 33 | 15 18 . Haulers Intercepted . | . . . Recyclers Shooed . | . . . Parts Field Recycled . | . . . Retrieved Matter . | . . . Parts Self-Destructed . | . . . Prevented . | . . . Parts Restored . | . . . Kills | -11 -10 -9 ------- Run | Yrd Mat Mat Combat Hostiles Destroyed 7 | . 7 . Guns 4 | . 4 . Cannons 1 | . 1 . AOE 2 | . 2 . Classes Destroyed 5 | 3 2 . Worker 3 | 2 1 . Tunneler 4 | 4 . . Recycler 2 | 1 1 . Swarmer 3 | . 3 . Grunt 4 | . 4 . Best Kill Streak 5 | 5 5 . Combat Bots Only 5 | . 5 . Max Kills in Single Turn 2 | 1 2 . Gunslinging . | . . . Exploded 2 | . 2 . Melee . | . . . Uniques/NPCs Destroyed . | . . . Combat | -11 -10 -9 -------- Run | Yrd Mat Mat Hostile Shots Fired 71 | . 54 17 Missed 20 | . 16 4 Hits 51 | . 38 13 Projectile 51 | . 38 13 Critical Strikes 1 | . 1 . Damage Taken 794 | . 600 194 Core 242 | . 197 45 Absorbed by Shields . | . . . Regen/Repaired (Parts) 8 | . 8 . Core Remaining (%) 60 | 100 21 . Volleys Fired 48 | 15 31 2 Largest 2 | 2 2 2 Hottest 112 | 60 60 112 Shots Fired 92 | 30 58 4 Gun 86 | 30 56 . Cannon 6 | . 2 4 Launcher . | . . . Special . | . . . Kinetic 62 | 17 45 . Thermal . | . . . Explosive . | . . . Electromagnetic 30 | 13 13 4 Robot Hit Streak 9 | 4 9 4 Robot Miss Streak 5 | 2 5 1 Penetration Max . | . . . Secondary Targets . | . . . Shots Hit Robots 45 | 16 27 2 Core Hits 21 | 7 14 . Critical Kills . | . . . Critical Parts Destroyed . | . . . Critical Strikes . | . . . Melee Attacks . | . . . Impact . | . . . Slashing . | . . . Piercing . | . . . Sneak Attacks . | . . . Combat Hostiles . | . . . Follow-up Attacks . | . . . Damage Inflicted 929 | 233 656 40 Guns 627 | 233 394 . Cannons 90 | . 50 40 Explosions 212 | . 212 . Melee . | . . . Ramming . | . . . Kinetic 467 | 116 351 . Thermal 212 | . 212 . Explosive . | . . . Electromagnetic 250 | 117 93 40 Impact . | . . . Slashing . | . . . Piercing . | . . . Highest Corruption . | . . . Average Corruption . | . . . Corruption Purged . | . . . Corruption Blocked . | . . . Overload Shots . | . . . Overflow Damage 11 | . 11 . Projectiles . | . . . Explosions 11 | . 11 . Melee . | . . . Knockbacks . | . . . Impact . | . . . Kinetic . | . . . Secondary . | . . . Self-Inflicted Damage 145 | . 145 . Shots 2 | . 2 . Rammed . | . . . Targets Rammed . | . . . Kicked . | . . . Crushed . | . . . Highest Temperature 36 | . 26 36 Average Temperature 12 | . 10 19 Received Heat Transfer 312 | . 234 78 Siege Activations . | . . . Martial Activations . | . . . Shielding Activations . | . . . Robots Disrupted . | . . . Combat Hostiles . | . . . Robots Corrupted . | . . . Combat Hostiles . | . . . Parts Fried . | . . . Impact Corruptions . | . . . Robots Melted . | . . . Combat Hostiles . | . . . Parts Melted . | . . . Heat Transferred 250 | . 250 . Parts Sabotaged . | . . . Parts Stolen . | . . . Parts Stripped . | . . . Power Chain Reactions 1 | . 1 . Alert | -11 -10 -9 ------- Run | Yrd Mat Mat Maximum Alert Level . | . . . Low Security (%) 100 | 100 100 100 Level 1 . | . . . Level 2 . | . . . Level 3 . | . . . Level 4 . | . . . Level 5 . | . . . High Security . | . . . Max Security . | . . . Peak Influence 178 | 10 178 67 Initial 67 | . . 67 Average 33 | 1 48 25 Influence Increases 357 | 35 307 15 Destroy 0b10 Robot/C 140 | . 140 . Destroy 0b10 Robot/NC 45 | 35 10 . Destroy Leader 30 | . 30 . Successful Hack 11 | . 11 . Disable Machine 60 | . 45 15 Destroy Structure 26 | . 26 . Lose Combat Pursuer 45 | . 45 . Influence Decreases 357 | 35 147 175 Entered New Map 93 | . . 93 Time Decay 219 | 35 107 77 Lost Part 45 | . 40 5 Squads Dispatched 3 | . 2 1 Investigation 1 | . 1 . Extermination . | . . . Reinforcement 2 | . 1 1 Assault . | . . . Garrison . | . . . Intercept . | . . . Searches Triggered . | . . . Construction Impeded . | . . . Haulers Reinforced . | . . . Active Scanning Responses . | . . . Cargo Convoy Interrupts . | . . . Stealth | -11 -10 -9 --------- Run | Yrd Mat Mat Distress Signals . | . . . Communications Jammed . | . . . Distress Signals . | . . . Times Spotted 17 | . 12 5 Peak Tracking Total 5 | . 4 5 Tactical Retreats 3 | . 3 . Traps | -11 -10 -9 ------- Run | Yrd Mat Mat Traps Triggered 2 | . 2 . Indirectly . | . . . Trap Hack Attempts . | . . . Triggered . | . . . Disarmed . | . . . Reprogrammed . | . . . Reused . | . . . Traps Extracted . | . . . Installed . | . . . Triggered . | . . . Machines | -11 -10 -9 ---------- Run | Yrd Mat Mat Machines Disabled 4 | . 3 1 Max in Single Turn 2 | . 2 1 Machines Repaired . | . . . Machines Dismantled . | . . . Machines Sabotaged . | . . . Overloaded Fab Kills . | . . . Hacking | -11 -10 -9 --------- Run | Yrd Mat Mat Machines Accessed 6 | . 6 . Terminals 3 | . 3 . Fabricators . | . . . Repair Stations 1 | . 1 . Recycling Units 2 | . 2 . Scanalyzers . | . . . Garrison Access . | . . . Total Hacks 14 | . 14 . Successful 9 | . 9 . Failed 5 | . 5 . Catastrophic 1 | . 1 . Database Lockouts . | . . . Manual . | . . . Terminals 6 | . 6 . Fabricators . | . . . Repair Stations 3 | . 3 . Recycling Units 5 | . 5 . Scanalyzers . | . . . Garrison Access . | . . . Terminal Hacks 3 | . 3 . Locate Traps 1 | . 1 . Patrol Status 1 | . 1 . Hauler Manifests 1 | . 1 . Fabricator Hacks . | . . . Repair Station Hacks 2 | . 2 . Scan Component 1 | . 1 . Repair 1 | . 1 . Recycling Unit Hacks 4 | . 4 . Recycle Component 1 | . 1 . Process 1 | . 1 . Report Inventory 2 | . 2 . Scanalyzer . | . . . Garrison Access Hacks . | . . . Unauthorized Hacks . | . . . Terminals . | . . . Fabricators . | . . . Repair Stations . | . . . Recycling Units . | . . . Scanalyzers . | . . . Garrison Access . | . . . Data Cores Recovered . | . . . Used . | . . . Hacking Detections 4 | . 4 . Full Trace Events 1 | . 1 . Feedback Events . | . . . Feedback Blocked . | . . . Robot Schematics Acquired . | . . . Robots Built . | . . . Authchips . | . . . Time . | . . . Total Robot Build Rating . | . . . Part Schematics Acquired . | . . . Parts Built . | . . . Authchips . | . . . Time . | . . . Total Part Build Rating . | . . . Part Studies Acquired . | . . . Parts Repaired 1 | . 1 . Time 26 | . 26 . Parts Recycled 1 | . 1 . Recycled Matter 15 | . 15 . Retrieved Matter . | . . . Retrieved Components . | . . . Parts Scanalyzed . | . . . Part Schematics Acquired . | . . . Parts Damaged . | . . . Bothacking | -11 -10 -9 ------------ Run | Yrd Mat Mat Used RIF Installer . | . . . Robots Hacked . | . . . Non-combat . | . . . Combat . | . . . Robot Hacks Applied . | . . . Relay Couplers Released . | . . . Fabnet Peak Effective % . | . . . Robots Rewired . | . . . Allies Hacked . | . . . Hacks Repelled . | . . . Allies | -11 -10 -9 -------- Run | Yrd Mat Mat Total Allies . | . . . Largest Group . | . . . Highest-Rated Group . | . . . Highest-Rated Ally . | . . . Total Orders . | . . . Ally Attacks . | . . . Total Damage . | . . . Kills . | . . . Allies Corrupted . | . . . Allies Melted . | . . . Intel | -11 -10 -9 ------- Run | Yrd Mat Mat Active Infowar (turns) 499 | 41 458 . Terrain 51 | 41 10 . Seismic 448 | . 448 . Robot Analysis Total . | . . . Derelict Logs Recovered . | . . . Drone Launches . | . . . Drone Recoveries . | . . . Exploration | -11 -10 -9 ------------- Run | Yrd Mat Mat Turns Passed 836 | 167 461 208 Spaces Moved 489 | 93 260 136 Core 22 | 22 . . Treads . | . . . Legs 33 | 33 . . Wheels 434 | 38 260 136 Hover . | . . . Flight . | . . . Fastest Speed 50 | 50 100 80 Average Speed 96 | 95 100 89 Slowest Speed 120 | 120 100 90 Overloaded Moves . | . . . Propulsion Burnouts . | . . . Robots Hopped . | . . . Potential Cave-ins . | . . . Cave-ins Triggered . | . . . Exploration Rate (%) 23 | 3 54 13 Regions Visited 2 Branch Regions . Pre-discovered Areas . | . . . Known Exits Taken . | . . . Unknown Exits Taken 2 | 1 1 . Scrap Searched . | . . . Spaces Dug . | . . . Terrain Destroyed 32 | . 32 . Melee . | . . . Projectile . | . . . AOE 32 | . 32 . Terrain Rammed . | . . . Walls Destroyed . | . . . Machines Disabled . | . . . Actions | -11 -10 -9 --------- Run | Yrd Mat Mat Total 764 | 143 404 217 Wait 178 | . 101 77 Move 487 | 92 259 136 Hop . | . . . Pick Up 23 | 17 5 1 Fast Attach . | . . . Attach 17 | 10 6 1 Detach 3 | 2 1 . Swap 2 | 2 . . Drop 6 | 5 1 . Fire 48 | 15 31 2 Melee . | . . . Ram . | . . . Kick . | . . . Crush . | . . . Escape Stasis . | . . . Rewire . | . . . Trap . | . . . Miscellaneous . | . . . Route ------- -11/Scrapyard -10/Materials -9/Materials History --------- Turn | Location | Event 7 | -11/Scrapyard | Discovered new exit (range 15) 168 | -11/Scrapyard | Entered Materials 240 | -10/Materials | Repaired Wheel 314 | -10/Materials | Build established: Mutant 489 | -10/Materials | Core integrity fell below 50% 596 | -10/Materials | Discovered new exit (range 15) 629 | -10/Materials | Entered another Materials area 629 | -9/Materials | Evolved 2 slots: Power x1, Utility x1 837 | -9/Materials | Self-destructed Last Messages --------------- Massive razor-sharp blades shoot up from within the floor. Lgt. Ion Engine severed. EXIT=FOUND Acquired 20 matter. Acquired Lgt. EM Pulse Cannon. G-34 Mercenary destroyed. K-01 Serf collects debris. G-34 Mercenary IFF system glitched. Seismic Detector destroyed. K-01 Serf collects debris. PARAMETERS=POWER+1,UTILITY+1 LOCATION=UNKNOWN GOAL=ESCAPE Acquired Datajack. ALERT: Hostiles spotted, dispatching reinforcements to Terminal M003. Hadron Collector disabled. Lgt. EM Pulse Cannon destroyed. Com. Wheel destroyed. Map ----- +----------------------------------------------------+ | ?????????????????????????????? | | ?????????????????????????????? | | ????????? ???????????????????? | | ????????? ???????????????????? | | ????????? ???????????????????? | | ????????? ???????????????????? | | ????????? ???????????????????? | | ????????? ???????????????????? | | ????????? ???????????????????? | | ????????# #??????????????????? | | ??????### ###????????????????? | | ??????# #????????????????? | | ??????? ?????????????????? | | ??????? ?????????????????? | | ???????? ??????????????????? | | ???????? ??????????????????? | | ????#####+#####??????????????? | | ????# #??????????????? | | ????# #??????????????? | | ????# """ #??????????????? | | ????# Y """""#?? #??????????? | | ????# """""#?# ###????????? | | ????# ! """""# ###+##???? | | ????# """ # ? | | ????# + ? | | ????#@######### ? | | ????# #???????? "T" ? | | ????# #???????# """ ?? | | ????# #???????# ![ ?? | | ???##+######### [ ??? | | ???# + #???? | | ???# # #???? | | ???# # "T" #???? | | ???# """ """ # #???? | | ???# """ """ + #???? | | ???# """ """ # #???? | | ???# "" """ # #???? | | ???# # #???? | | ??############ """ #???? | | ??# ## """ #???? | | ??# # """ #???? | | ??# # #???? | | ??# """ + #???? | | ??# """"" # #???? | | ??? """"" # #???? | | ????""""" # ##########??? | | ???? """ # # """ #??? | | ?????######## # """"" #??? | | ????????????# + """"" #??? | | ????????????# # """"" #??? | +----------------------------------------------------+ Best States ------------- Heat Dissipation 28 Energy Generation 10 Energy Capacity 250 Matter Stores 298 Matter Capacity 300 Sight Range 16 Terrain Scan Range 16 Terrain Scan Density 10 Evasion (%) 50 Item Schematics ----------------- None Robot Schematics ------------------ None Fabricated ------------ Nothing Repaired ---------- Wheel | 80% | -10/Materials Studied --------- None Alien Tech Used ----------------- None Achievements -------------- None Challenges ------------ None Game ------ Seed CoreMicroArticulator Manual? 0 Play Time 00:13:20 Cumulative 5.1 hours Start 2026.07.10 @ 18:31:22 End 2026.07.10 @ 18:43:08 Sessions 1 Manual Loads 0 Difficulty Rogue Special Mode None Game No. 8 Rogue 5 Adventurer 3 Explorer 0 Win Type - Total 0 Types 0/0/0/0/0/0/0/0/0/0 Lore% 5 Gallery% 10 Achievement% 9 Wizard Run 0 Options --------- Layout 1 ASCII 0 Keyboard 0 Movement Arrows Keybinds 0 Fullscreen 2 Font 32/Cog Map View 50x35 Zoom Use 0% Tactical HUD 0 Map Filters NONE Filters NONE Steam 1 RUN: 386e9619-f367-4ff4-933d-43ab248d5efb